bitfinex-derivatives/quotes_SOLF0:USTF0_20250516
["timestamp","ask_amount","ask_price","bid_price","bid_amount"]
[1747434641848,41.78,167.54,167.53,5.9671]
[1747434647146,41.78,167.54,167.52,67.8473]
[1747434647453,41.78,167.54,167.52,61.88]
[1747434647653,41.78,167.54,167.49,61.86]
[1747434648254,41.78,167.54,167.51,5.9676]
[1747434648851,41.78,167.54,167.52,5.9674]
[1747434649056,41.78,167.54,167.49,61.86]
[1747434650355,41.78,167.54,167.53,5.967]
[1747434652354,41.78,167.54,167.53,67.827]
[1747434652552,38.6934,167.54,167.53,67.827]
[1747434652755,61.82,167.6,167.58,5.9652]
[1747434652953,61.82,167.6,167.53,61.86]
[1747434653350,67.7846,167.6,167.56,5.9658]
[1747434655056,109.58,167.62,167.53,61.86]
[1747434655260,61.82,167.61,167.53,61.86]
[1747434655460,61.82,167.61,167.58,5.9651]
[1747434655650,109.58,167.62,167.54,1.8678]
[1747434655850,61.82,167.61,167.54,1.8678]
[1747434656561,109.58,167.62,167.54,1.8678]
[1747434656858,28.04,167.61,167.54,1.8678]
[1747434657953,34.0044,167.61,167.54,1.8678]
[1747434658257,34.0044,167.61,167.57,5.9654]
[1747434659161,28.04,167.61,167.54,1.8678]
[1747434660863,28.04,167.61,167.58,5.9651]
[1747434661053,28.04,167.61,167.54,1.8678]
[1747434661561,34.0045,167.61,167.56,5.9657]
[1747434661855,34.0045,167.61,167.54,1.8678]
[1747434662063,5.9651,167.59,167.55,5.9662]
[1747434662258,28.04,167.61,167.54,1.8678]
[1747434662554,5.9648,167.6,167.54,1.8678]
[1747434662763,28.04,167.61,167.54,1.8678]
[1747434662956,34.0045,167.61,167.57,5.9654]
[1747434663956,5.9646,167.6,167.57,5.9654]
[1747434665265,34.0043,167.61,167.58,5.9651]
[1747434666454,28.04,167.61,167.54,1.8678]
[1747434667157,28.04,167.61,167.58,5.9651]
[1747434667567,28.04,167.61,167.59,5.9648]
[1747434668564,28.04,167.61,167.58,5.9651]
[1747434669165,28.04,167.61,167.59,5.9647]
[1747434670166,28.04,167.61,167.6,5.9646]
[1747434671469,28.04,167.61,167.59,5.9648]
[1747434672264,28.04,167.61,167.57,67.7655]
[1747434672464,28.04,167.61,167.57,61.8]
[1747434672668,61.78,167.6,167.54,1.8678]
[1747434672870,61.78,167.6,167.53,61.78]
[1747434673073,5.9658,167.57,167.53,61.78]
[1747434673272,61.78,167.6,167.53,61.78]
[1747434674074,5.9653,167.58,167.54,5.9664]
[1747434674272,61.78,167.6,167.53,61.78]
[1747434674774,5.9651,167.59,167.55,5.9663]
[1747434675075,61.78,167.6,167.53,61.78]
[1747434675769,5.965,167.59,167.55,5.9661]
[1747434676169,61.78,167.6,167.53,61.78]
[1747434676369,5.9653,167.58,167.54,5.9666]
[1747434677767,5.9653,167.58,167.55,5.9663]
[1747434678173,61.78,167.6,167.53,61.78]
[1747434678372,61.78,167.6,167.56,5.9658]
[1747434679577,5.9654,167.58,167.53,61.78]
[1747434680279,5.9654,167.58,167.55,5.9662]
[1747434680880,61.78,167.6,167.53,61.78]
[1747434681284,28.04,167.61,167.53,68.16801134]
[1747434681474,28.04,167.61,167.59,5.9649]
[1747434681875,28.04,167.61,167.54,61.78]
[1747434682079,28.04,167.61,167.58,5.9651]
[1747434682289,28.04,167.61,167.54,61.78]
[1747434682482,34.0044,167.61,167.57,5.9655]
[1747434682782,34.0044,167.61,167.54,61.78]
[1747434683885,28.04,167.61,167.58,5.9653]
[1747434684788,28.04,167.61,167.6,5.9646]
[1747434687282,28.04,167.61,167.57,61.8]
[1747434687481,28.04,167.61,167.55,63.6027]
[1747434687687,89.8,167.61,167.55,61.74]
[1747434687990,5.9651,167.59,167.55,67.7062]
[1747434688690,5.9654,167.58,167.55,67.7062]
[1747434689090,89.8,167.61,167.56,5.9659]
[1747434689990,5.9649,167.59,167.56,5.9659]
[1747434690693,89.8,167.61,167.57,5.9653]
[1747434691293,95.7644,167.61,167.58,5.9652]
[1747434691593,89.8,167.61,167.55,61.74]
[1747434691790,61.76,167.61,167.55,61.74]
[1747434692292,5.9648,167.6,167.57,5.9655]
[1747434692592,5.9648,167.6,167.55,61.74]
[1747434692794,5.9651,167.59,167.56,5.9658]
[1747434693494,5.9647,167.6,167.57,5.9655]
[1747434696294,67.7244,167.61,167.58,5.9652]
[1747434696698,61.76,167.61,167.55,61.74]
[1747434697499,5.9649,167.59,167.56,5.9658]
[1747434697696,61.76,167.61,167.55,61.74]
[1747434698000,61.76,167.61,167.57,5.9654]
[1747434698600,67.7243,167.61,167.58,5.9653]
[1747434699705,5.9646,167.6,167.57,5.9655]
[1747434701604,67.7244,167.61,167.58,5.9651]
[1747434702305,46.85,167.62,167.55,61.74]
[1747434702707,46.85,167.62,167.55,123.46]
[1747434703601,46.85,167.62,167.6,5.9643]
[1747434705601,46.85,167.62,167.59,5.9648]
[1747434705798,46.85,167.62,167.55,123.46]
[1747434706310,46.85,167.62,167.6,5.9646]
[1747434706612,46.85,167.62,167.55,123.46]
[1747434706911,46.85,167.62,167.59,5.9647]
[1747434708209,48.8939,167.62,167.58,5.9651]
[1747434709510,33.9839,167.62,167.58,5.9651]
[1747434710012,33.9839,167.62,167.59,5.9649]
[1747434711615,28.02,167.62,167.6,5.9646]
[1747434712313,28.02,167.62,167.55,123.46]
[1747434712915,28.02,167.62,167.6,5.9644]
[1747434715621,28.02,167.62,167.61,5.9642]
[1747434716718,28.02,167.62,167.6,5.9644]
[1747434717612,28.02,167.62,167.55,123.46]
[1747434718419,28.02,167.62,167.59,5.9646]
[1747434718609,33.9839,167.62,167.55,61.74]
[1747434718814,28.02,167.62,167.55,61.74]
[1747434719015,5.9645,167.61,167.57,5.9654]
[1747434719215,61.68,167.61,167.55,61.74]
[1747434719615,5.9648,167.6,167.56,5.9656]
[1747434720413,5.965,167.59,167.56,5.9656]
[1747434721722,5.965,167.59,167.57,5.9656]
[1747434722121,5.9655,167.58,167.52,61.68]
[1747434722420,5.9655,167.58,167.55,5.9661]
[1747434722615,61.68,167.61,167.52,61.68]
[1747434722818,5.965,167.59,167.56,5.9657]
[1747434723018,5.965,167.59,167.52,61.68]
[1747434723620,5.9654,167.58,167.52,61.68]
[1747434723819,5.9654,167.58,167.55,5.9661]
[1747434724219,5.9662,167.56,167.51,1.9597]
[1747434724417,61.68,167.57,167.51,1.9597]
[1747434724722,61.68,167.57,167.53,5.9669]
[1747434724920,5.9661,167.56,167.53,5.9669]
[1747434725517,61.68,167.57,167.5,61.68]
[1747434725717,61.68,167.57,167.47,61.7]
[1747434725918,68.06801134,167.57,167.47,61.7]
[1747434726119,5.9669,167.54,167.51,5.9677]
[1747434726320,61.68,167.53,167.51,5.9677]
[1747434726525,61.68,167.53,167.52,5.9674]
[1747434727723,61.68,167.53,167.51,5.9676]
[1747434728220,61.68,167.53,167.5,5.968]
[1747434728422,61.68,167.53,167.47,61.7]
[1747434728924,61.68,167.53,167.51,5.9677]
[1747434729228,61.68,167.53,167.52,5.9674]
[1747434729427,7.57971134,167.61,167.47,61.7]
[1747434729620,123.38,167.6,167.48,61.68]
[1747434730122,5.9655,167.58,167.55,5.9663]
[1747434730316,61.68,167.57,167.55,5.9663]
[1747434730827,61.68,167.57,167.56,5.966]
[1747434731827,61.68,167.57,167.55,5.9662]
[1747434732326,61.68,167.57,167.56,5.966]
[1747434733230,61.68,167.57,167.55,5.9662]
[1747434736627,61.68,167.57,167.54,5.9665]
[1747434737431,61.68,167.57,167.55,5.9663]
[1747434738538,67.6457,167.57,167.55,5.9663]
[1747434738938,61.68,167.57,167.49,1.9231]
[1747434739127,61.68,167.57,167.49,63.6231]
[1747434739335,61.7,167.56,167.49,63.6231]
[1747434739534,5.9669,167.54,167.51,5.9676]
[1747434739730,61.7,167.56,167.51,5.9676]
[1747434739934,61.7,167.56,167.5,5.9681]
[1747434740841,61.7,167.56,167.46,63.6359]
[1747434741242,5.9669,167.54,167.46,63.6359]
[1747434741541,5.9669,167.54,167.51,5.9676]
[1747434742747,67.6269,167.54,167.51,5.9676]
[1747434744049,61.66,167.54,167.46,63.6359]
[1747434744548,61.66,167.54,167.51,5.9677]
[1747434744742,61.66,167.54,167.47,6.38801134]
[1747434744936,29.82,167.59,167.47,68.04801134]
[1747434745141,29.82,167.59,167.5,6.38801134]
[1747434745341,29.82,167.59,167.51,127.2883]
[1747434745546,29.82,167.59,167.53,6.38801134]
[1747434745746,26.7339,167.59,167.54,1.9678]
[1747434745950,26.7339,167.59,167.55,123.36]
[1747434746248,14.91,167.59,167.55,123.36]
[1747434746548,14.91,167.59,167.58,5.9653]
[1747434747545,127.28,167.64,167.61,5.9642]
[1747434747847,65.58,167.64,167.61,5.9642]
[1747434748049,65.58,167.64,167.6,5.9644]
[1747434748244,65.58,167.64,167.57,1.912]
[1747434748653,65.58,167.64,167.58,5.9649]
[1747434748946,65.58,167.64,167.57,1.912]
[1747434749155,33.9839,167.62,167.58,5.965]
[1747434749352,28.02,167.62,167.57,1.912]
[1747434749648,28.02,167.62,167.55,123.36]
[1747434750055,28.02,167.62,167.55,61.7]
[1747434750556,5.9649,167.59,167.55,61.7]
[1747434751055,5.9649,167.59,167.55,5.9661]
[1747434751356,67.5846,167.6,167.54,1.9678]
[1747434751557,61.62,167.6,167.54,1.9678]
[1747434751751,61.62,167.6,167.57,5.9654]
[1747434752357,61.62,167.6,167.56,5.9659]
[1747434752557,61.62,167.6,167.52,63.5228]
[1747434752959,61.62,167.59,167.54,5.9664]
[1747434753156,5.9654,167.58,167.52,63.5228]
[1747434755155,67.5851,167.59,167.52,63.5228]
[1747434755354,67.5851,167.59,167.55,5.9661]
[1747434755555,61.62,167.59,167.52,63.5228]
[1747434756056,5.9655,167.58,167.54,5.9664]
[1747434757058,61.62,167.59,167.53,5.9669]
[1747434757457,5.9663,167.56,167.53,5.9669]
[1747434757660,67.5863,167.56,167.53,5.9669]
[1747434758357,67.5863,167.56,167.54,5.9667]
[1747434758562,61.62,167.56,167.54,5.9667]
[1747434759664,61.62,167.56,167.47,6.38801134]
[1747434759665,61.62,167.56,167.43,6.38801134]
[1747434759863,61.62,167.55,167.45,5.7688]
[1747434760156,61.62,167.55,167.49,5.9682]
[1747434760360,61.62,167.55,167.45,5.7688]
[1747434762063,5.9677,167.52,167.45,5.7688]
[1747434762260,67.5677,167.52,167.45,5.7688]
[1747434762665,5.9678,167.51,167.48,5.9686]
[1747434762865,61.6,167.52,167.45,5.7688]
[1747434763567,61.62,167.55,167.45,12.15681134]
[1747434763762,21.29801134,167.63,167.48,6.38801134]
[1747434764070,76.51,167.63,167.54,6.38801134]
[1747434764260,76.51,167.63,167.55,67.4974]
[1747434764461,76.51,167.63,167.6,5.9643]
[1747434765063,82.4735,167.63,167.59,5.9648]
[1747434765469,76.51,167.63,167.55,67.4974]
[1747434765663,76.51,167.63,167.6,5.9645]
[1747434765863,76.51,167.63,167.55,67.4974]
[1747434766065,82.4737,167.63,167.59,5.9648]
[1747434766968,76.51,167.63,167.6,5.9646]
[1747434767570,14.91,167.63,167.61,5.964]
[1747434767765,14.91,167.63,167.57,6.38801134]
[1747434768266,14.91,167.63,167.62,5.9639]
[1747434776067,180.40405068,167.67,167.65,5.9626]
[1747434776473,180.40405068,167.67,167.6,6.38801134]
[1747434776670,180.40405068,167.67,167.66,5.9624]
[1747434776979,43.2,167.67,167.66,5.9624]
[1747434778871,43.2,167.67,167.65,5.9628]
[1747434779177,43.2,167.67,167.64,3.8949]
[1747434779569,43.2,167.67,167.66,5.9624]
[1747434782377,29.8,167.71,167.64,3.8949]
[1747434782876,29.8,167.71,167.63,61.6]
[1747434783977,5.9621,167.68,167.63,67.5633]
[1747434784175,61.52,167.68,167.63,67.5633]
[1747434784576,5.9623,167.67,167.63,67.5633]
[1747434784977,5.9623,167.67,167.64,5.9631]
[1747434785380,5.9624,167.66,167.63,61.6]
[1747434785775,168.59,167.68,167.62,5.9638]
[1747434785978,5.9625,167.66,167.6,61.52]
[1747434787378,5.9622,167.67,167.6,61.52]
[1747434787567,168.59,167.68,167.6,61.52]
[1747434788078,174.5519,167.68,167.64,5.9631]
[1747434788273,113.0319,167.68,167.64,5.9631]
[1747434788867,107.07,167.68,167.6,61.52]
[1747434789278,113.0319,167.68,167.64,5.9631]
[1747434789980,5.9622,167.67,167.63,5.9633]
[1747434790278,107.07,167.68,167.6,61.52]
[1747434790471,113.0319,167.68,167.64,5.9629]
[1747434790670,113.0319,167.68,167.6,61.52]
[1747434790671,45.55,167.68,167.6,61.52]
[1747434790873,45.55,167.68,167.61,8.28461134]
[1747434791080,45.55,167.68,167.67,5.9621]
[1747434791280,45.55,167.68,167.67,67.4821]
[1747434792379,45.55,167.68,167.67,61.52]
[1747434792580,45.55,167.68,167.64,61.52]
[1747434793878,45.55,167.68,167.67,5.9621]
[1747434800886,45.55,167.68,167.66,5.9623]
[1747434801479,45.55,167.68,167.67,5.9621]
[1747434802387,45.55,167.68,167.66,5.9623]
[1747434802891,45.55,167.68,167.67,5.9621]
[1747434804090,5.9627,167.66,167.53,11.9335]
[1747434804289,5.9627,167.66,167.56,6.38801134]
[1747434804692,5.9627,167.66,167.57,61.46]
[1747434804881,67.4227,167.66,167.58,61.52]
[1747434805288,67.4227,167.66,167.61,5.9642]
[1747434805289,61.46,167.66,167.61,5.9642]
[1747434805993,5.9629,167.65,167.61,5.9642]
[1747434806392,61.46,167.66,167.62,5.9637]
[1747434806593,45.55,167.68,167.63,61.52]
[1747434807194,45.55,167.68,167.65,5.9625]
[1747434808391,51.5118,167.68,167.65,5.9625]
[1747434811397,51.5118,167.68,167.66,5.9623]
[1747434813296,51.5118,167.68,167.65,5.9626]
[1747434813497,45.55,167.68,167.63,61.52]
[1747434814097,45.55,167.68,167.67,5.9621]
[1747434814595,45.55,167.68,167.66,5.9623]
[1747434815703,51.5117,167.68,167.65,5.9626]
[1747434815998,45.55,167.68,167.63,61.52]
[1747434816200,5.9626,167.66,167.63,67.4834]
[1747434816401,5.9626,167.66,167.63,5.9634]
[1747434818502,5.9626,167.66,167.6,65.4115]
[1747434818804,9.8822,167.67,167.6,65.4115]
[1747434819298,9.8822,167.67,167.64,5.9629]
[1747434819695,5.9625,167.66,167.64,5.9629]
[1747434820002,5.9625,167.66,167.63,5.9633]
[1747434820702,45.55,167.68,167.65,6.38801134]
[1747434821003,14.9,167.7,167.64,61.44]
[1747434821395,14.9,167.7,167.62,61.44]
[1747434821804,1.1889,167.69,167.62,61.44]
[1747434821992,66.4733,167.69,167.59,63.3554]
[1747434822498,5.9623,167.67,167.63,5.9631]
[1747434822701,61.42,167.66,167.63,5.9631]
[1747434822903,61.42,167.66,167.59,63.3554]
[1747434823298,61.42,167.66,167.56,6.38801134]
[1747434823502,61.42,167.66,167.57,61.44]
[1747434823705,61.42,167.66,167.62,5.9637]
[1747434824004,5.963,167.65,167.62,5.9637]
[1747434824195,5.963,167.65,167.57,61.44]
[1747434824196,61.42,167.66,167.63,5.9635]
[1747434824800,67.3826,167.66,167.57,61.44]
[1747434826207,67.3826,167.66,167.62,5.9635]
[1747434827003,67.3826,167.66,167.63,5.9634]
[1747434828705,5.9628,167.65,167.62,5.9637]
[1747434829103,61.42,167.66,167.57,61.44]
[1747434830813,61.44,167.65,167.57,61.44]
[1747434831208,61.44,167.65,167.59,5.9647]
[1747434831705,61.44,167.65,167.58,5.9652]
[1747434831902,67.82801134,167.65,167.58,5.9652]
[1747434832305,5.9648,167.6,167.57,5.9656]
[1747434832606,61.4,167.59,167.57,5.9656]
[1747434834311,61.4,167.59,167.58,5.9653]
[1747434835109,61.4,167.59,167.57,5.9655]
[1747434836616,67.3649,167.59,167.57,5.9655]
[1747434836908,61.4,167.59,167.55,5.9661]
[1747434837310,61.4,167.59,167.51,61.46]
[1747434837311,76.31,167.59,167.51,61.46]
[1747434837712,76.31,167.59,167.53,6.38801134]
[1747434837906,14.91,167.59,167.58,5.9653]
[1747434839306,14.91,167.59,167.57,5.9655]
[1747434839912,14.91,167.59,167.58,5.9653]
[1747434842708,5.8401,167.59,167.58,5.9653]
[1747434842907,61.4,167.63,167.62,5.9639]
[1747434843108,61.38,167.66,167.59,61.38]
[1747434843608,61.38,167.66,167.63,5.9634]
[1747434843807,61.38,167.66,167.59,61.38]
[1747434845015,5.9632,167.64,167.59,67.3446]
[1747434845514,5.9629,167.65,167.59,61.38]
[1747434845711,61.38,167.66,167.59,61.38]
[1747434846013,61.38,167.66,167.61,5.9642]
[1747434846215,5.963,167.65,167.61,5.9642]
[1747434846613,61.38,167.66,167.61,5.9642]
[1747434846813,61.38,167.66,167.59,61.38]
[1747434847010,61.38,167.66,167.55,61.38]
[1747434847408,5.9648,167.6,167.57,5.9654]
[1747434847708,5.9648,167.6,167.55,61.38]
[1747434847709,61.38,167.6,167.55,61.38]
[1747434849009,61.38,167.63,167.55,61.38]
[1747434849410,61.38,167.63,167.55,122.76]
[1747434850220,14.91,167.62,167.55,122.76]
[1747434850516,14.91,167.62,167.61,5.964]
[1747434853119,14.91,167.62,167.6,5.9645]
[1747434853307,14.91,167.62,167.59,61.38]
[1747434853712,14.91,167.62,167.61,5.9642]
[1747434854118,14.91,167.62,167.59,61.38]
[1747434854418,14.91,167.62,167.61,5.9642]
[1747434860011,14.91,167.62,167.6,5.9644]
[1747434860216,14.91,167.62,167.56,61.38]
[1747434860511,14.91,167.62,167.58,5.965]
[1747434860512,20.874,167.62,167.58,5.965]
[1747434860722,82.214,167.62,167.58,5.965]
[1747434862419,76.25,167.62,167.56,61.38]
[1747434862625,76.25,167.62,167.57,5.9654]
[1747434862824,76.25,167.62,167.56,61.38]
[1747434864123,5.9644,167.61,167.58,5.965]
[1747434864825,5.9644,167.61,167.59,5.9649]
[1747434865126,5.9644,167.61,167.56,61.38]
[1747434865425,5.9644,167.61,167.58,5.965]
[1747434865728,5.9644,167.61,167.56,61.38]
[1747434866429,5.9646,167.6,167.56,61.38]
[1747434866928,5.9651,167.59,167.56,61.38]
[1747434867128,122.72,167.62,167.53,61.38]
[1747434867323,61.32,167.61,167.53,61.38]
[1747434867523,61.32,167.61,167.56,5.9659]
[1747434867828,76.23,167.61,167.56,5.9659]
[1747434869327,5.9655,167.58,167.55,5.9661]
[1747434871327,5.9655,167.58,167.56,5.9659]
[1747434871527,5.9655,167.58,167.53,61.38]
[1747434871930,5.9657,167.57,167.53,61.38]
[1747434872230,76.23,167.61,167.53,61.38]
[1747434872430,76.23,167.61,167.52,515.44]
[1747434872431,76.23,167.61,167.55,5.9662]
[1747434872841,76.23,167.61,167.52,576.74]
[1747434873147,5.9658,167.57,167.54,5.9664]
[1747434874346,61.32,167.57,167.5,61.3]
[1747434875249,5.9664,167.55,167.52,5.9673]
[1747434875546,61.32,167.57,167.5,61.3]
[1747434875755,67.2648,167.6,167.57,5.9656]
[1747434876047,67.2648,167.6,167.51,61.3]
[1747434876553,5.9649,167.59,167.51,61.3]
[1747434876849,5.9649,167.59,167.55,5.9661]
[1747434877043,5.9649,167.59,167.51,61.3]
[1747434878244,5.9649,167.59,167.55,5.9661]
[1747434879051,5.9649,167.59,167.56,5.9659]
[1747434881151,5.9649,167.59,167.51,61.3]
[1747434881355,61.3,167.6,167.51,61.3]
[1747434882455,5.9655,167.58,167.51,61.3]
[1747434883054,5.9655,167.58,167.54,5.9665]
[1747434883250,5.9655,167.58,167.51,61.3]
[1747434884254,5.9655,167.58,167.54,5.9664]
[1747434884455,5.9658,167.57,167.54,5.9664]
[1747434885356,5.9658,167.57,167.53,5.9669]
[1747434885544,61.3,167.6,167.5,122.58]
[1747434885949,61.3,167.6,167.52,5.9672]
[1747434886151,5.9666,167.55,167.52,5.9672]
[1747434886552,61.3,167.6,167.52,5.9672]
[1747434886750,5.9669,167.54,167.51,5.9676]
[1747434886946,61.28,167.55,167.47,61.32]
[1747434887154,5.9684,167.5,167.47,5.969]
[1747434887350,5.9684,167.5,167.44,65.2461]
[1747434888258,5.9686,167.49,167.47,5.9691]
[1747434888457,61.28,167.51,167.47,5.9691]
[1747434888661,61.28,167.51,167.48,5.9688]
[1747434889051,67.248,167.51,167.44,65.2461]
[1747434889260,61.28,167.51,167.44,65.2461]
[1747434889459,67.2479,167.51,167.44,65.2461]
[1747434890057,61.28,167.51,167.44,65.2461]
[1747434890458,61.28,167.51,167.47,5.969]
[1747434890661,67.248,167.51,167.47,5.969]
[1747434891056,61.28,167.51,167.44,65.2461]
[1747434891361,61.28,167.51,167.44,71.63411134]
[1747434892357,61.28,167.51,167.44,65.2461]
[1747434892856,5.9684,167.5,167.46,5.9694]
[1747434893257,67.2479,167.51,167.44,65.2461]
[1747434893464,61.28,167.51,167.44,65.2461]
[1747434894664,61.28,167.51,167.48,5.9686]
[1747434894860,61.28,167.51,167.44,65.2461]
[1747434895060,36.13,167.5,167.44,65.2461]
[1747434895463,36.13,167.5,167.47,5.969]
[1747434895668,36.13,167.5,167.44,65.2461]
[1747434896863,42.0985,167.5,167.46,5.9693]
[1747434897166,36.13,167.5,167.44,65.2461]
[1747434897667,5.9685,167.49,167.45,5.9696]
[1747434897966,5.9685,167.49,167.44,3.9261]
[1747434898168,14.92,167.49,167.44,3.9261]
[1747434898565,14.92,167.49,167.46,5.9693]
[1747434898867,14.92,167.49,167.44,3.9261]
[1747434900470,14.92,167.49,167.48,5.9688]
[1747434901472,14.92,167.49,167.45,61.34]
[1747434901864,14.92,167.49,167.43,1.9716]
[1747434902373,5.9689,167.48,167.45,5.9697]
[1747434903171,20.8886,167.49,167.45,5.9697]
[1747434903470,14.92,167.49,167.45,5.9697]
[1747434903872,20.8887,167.49,167.45,5.9697]
[1747434904969,14.92,167.49,167.46,5.9695]
[1747434905166,14.92,167.49,167.43,1.9716]
[1747434905564,14.92,167.49,167.46,5.9693]
[1747434907473,14.92,167.49,167.47,5.9691]
[1747434908470,14.92,167.49,167.46,5.9694]
[1747434908874,20.8886,167.49,167.46,5.9694]
[1747434909475,20.8886,167.49,167.45,5.9698]
[1747434909676,14.92,167.49,167.45,5.9698]
[1747434909874,14.92,167.49,167.43,1.9716]
[1747434911075,14.92,167.49,167.48,5.9688]
[1747434915281,36.13,167.5,167.49,5.9685]
[1747434915881,36.13,167.5,167.46,61.26]
[1747434916580,36.13,167.5,167.48,5.9685]
[1747434918982,36.13,167.5,167.49,5.9685]
[1747434919779,26.8702,167.5,167.49,5.9685]
[1747434919981,14.92,167.52,167.51,5.9678]
[1747434927190,14.92,167.52,167.48,6.38801134]
[1747434927386,14.92,167.52,167.48,61.24]
[1747434927697,14.92,167.52,167.5,5.968]
[1747434928196,14.92,167.52,167.48,61.24]
[1747434928397,14.92,167.52,167.51,5.9678]
[1747434932095,4.9755,167.52,167.51,5.9678]
[1747434932402,0.65,167.54,167.53,5.9671]
[1747434932996,110.5039,167.62,167.52,61.24]
[1747434933302,110.5039,167.62,167.54,6.38801134]
[1747434933503,171.6639,167.62,167.54,6.38801134]
[1747434933902,110.5039,167.62,167.54,6.38801134]
[1747434934102,171.6639,167.62,167.54,6.38801134]
[1747434934304,177.6279,167.62,167.58,5.9651]
[1747434934506,171.6639,167.62,167.54,6.38801134]
[1747434935104,110.5039,167.62,167.54,6.38801134]
[1747434935305,5.9642,167.61,167.57,5.9654]
[1747434936200,177.6279,167.62,167.58,5.9651]
[1747434936397,171.6639,167.62,167.54,6.38801134]
[1747434936900,171.6639,167.62,167.59,5.9647]
[1747434937105,171.6639,167.62,167.54,6.38801134]
[1747434938210,171.6639,167.62,167.59,5.9649]
[1747434938408,169.7151,167.62,167.59,5.9649]
[1747434938609,169.7151,167.62,167.54,6.38801134]
[1747434938812,175.6792,167.62,167.57,5.9653]
[1747434939109,169.7151,167.62,167.57,5.9653]
[1747434939410,169.7151,167.62,167.58,5.9652]
[1747434939608,169.7151,167.62,167.54,6.38801134]
[1747434940008,5.9642,167.61,167.58,5.9653]
[1747434941311,5.9646,167.6,167.57,5.9655]
[1747434941510,169.7151,167.62,167.52,122.36]
[1747434942109,5.9647,167.6,167.52,122.36]
[1747434943311,5.9649,167.59,167.52,122.36]
[1747434943611,169.7151,167.62,167.52,122.36]
[1747434944111,169.7151,167.62,167.52,61.24]
[1747434944310,169.7151,167.62,167.49,61.14]
[1747434944713,5.9662,167.56,167.53,5.9668]
[1747434944913,67.0862,167.56,167.53,5.9668]
[1747434946316,61.12,167.56,167.53,5.9668]
[1747434946510,61.12,167.56,167.51,5.9674]
[1747434946708,65.093,167.56,167.51,5.9674]
[1747434947316,5.9669,167.54,167.52,5.9674]
[1747434948713,71.0592,167.56,167.49,61.14]
[1747434949112,65.093,167.56,167.49,61.14]
[1747434949313,5.9666,167.55,167.52,5.9672]
[1747434949815,5.9666,167.55,167.49,61.14]
[1747434950416,5.9666,167.55,167.52,5.9672]
[1747434951017,65.093,167.56,167.51,5.9676]
[1747434952010,65.093,167.56,167.5,5.968]
[1747434952206,5.9673,167.53,167.5,5.968]
[1747434952409,65.093,167.56,167.49,61.14]
[1747434952916,5.9673,167.53,167.5,5.968]
[1747434953118,65.093,167.56,167.46,61.14]